bitfinex/quotes_SOLUSD_20240612
["timestamp","ask_amount","ask_price","bid_price","bid_amount"]
[1718205530764,100.0,159.21,159.19,0.03906886]
[1718205531082,102.324,159.21,159.19,0.03906886]
[1718205531567,9.9039,159.22,159.19,0.03906886]
[1718205531770,2.3239,159.21,159.19,0.03906886]
[1718205532665,7.58,159.22,159.19,0.03906886]
[1718205532867,2.3235,159.25,159.21,9.9039]
[1718205533081,100.0,159.25,159.21,7.58]
[1718205533284,102.3234,159.25,159.2,9.904]
[1718205533485,2.3235,159.24,159.2,9.904]
[1718205533689,102.3234,159.25,159.21,2.3239]
[1718205534106,102.3234,159.25,159.19,7.61906886]
[1718205534107,2.3235,159.24,159.2,2.324]
[1718205534607,102.3234,159.25,159.21,2.3239]
[1718205534784,100.0,159.25,159.19,7.61906886]
[1718205535112,2.3235,159.24,159.2,2.324]
[1718205535286,2.324,159.21,159.19,0.03906886]
[1718205535493,2.3237,159.23,159.19,2.36326886]
[1718205535808,102.3234,159.25,159.21,2.3239]
[1718205535984,2.3235,159.24,159.2,9.904]
[1718205536585,9.9033,159.26,159.2,7.58]
[1718205536805,2.3233,159.26,159.21,7.58]
[1718205536985,2.3233,159.26,159.22,2.3237]
[1718205537487,100.0,159.29,159.23,2.3235]
[1718205537818,100.0,159.29,159.23,9.9036]
[1718205537995,2.3231,159.27,159.23,7.58]
[1718205538296,7.58,159.28,159.22,9.9037]
[1718205538500,2.3233,159.26,159.22,9.9037]
[1718205538805,2.3233,159.26,159.22,7.58]
[1718205538970,2.3233,159.26,159.22,9.9038]
[1718205539175,102.3231,159.27,159.23,2.3236]
[1718205539480,2.3231,159.27,159.23,2.3236]
[1718205539678,2.3232,159.26,159.22,9.9037]
[1718205539880,2.3232,159.26,159.22,7.58]
[1718205540172,2.3232,159.26,159.21,9.9038]
[1718205540688,2.3234,159.25,159.21,9.9038]
[1718205541299,2.3234,159.25,159.21,7.58]
[1718205541609,2.3234,159.25,159.21,2.3239]
[1718205541610,102.3234,159.25,159.21,2.3239]
[1718205541983,100.0,159.25,159.21,9.9039]
[1718205542591,102.3234,159.25,159.21,9.9039]
[1718205542901,100.0,159.25,159.21,7.58]
[1718205543416,102.3234,159.25,159.2,25.982]
[1718205543585,2.3235,159.24,159.2,18.402]
[1718205543782,2.3237,159.23,159.19,6.15086886]
[1718205544211,2.3237,159.23,159.19,8.47506886]
[1718205544586,102.3235,159.25,159.19,6.15086886]
[1718205544786,2.324,159.21,159.19,0.03906886]
[1718205545213,109.9039,159.22,159.19,0.03906886]
[1718205545392,102.3239,159.22,159.19,0.03906886]
[1718205546889,100.0,159.22,159.19,0.03906886]
[1718205547103,9.9037,159.23,159.19,2.36326886]
[1718205548291,2.3238,159.22,159.19,0.03906886]
[1718205548511,2.3239,159.21,159.19,0.03906886]
[1718205548698,102.3239,159.22,159.19,0.03906886]
[1718205548907,2.324,159.21,159.19,0.03906886]
[1718205549108,2.3241,159.2,159.19,0.03906886]
[1718205550228,2.324,159.21,159.19,0.03906886]
[1718205550513,102.4941,159.2,159.19,0.03906886]
[1718205550703,131.501,159.2,159.19,0.03906886]
[1718205556502,0.17,159.15,159.11,3.26879536]
[1718205556732,107.58,159.14,159.11,5.59409536]
[1718205556896,109.905,159.14,159.11,3.26879536]
[1718205557399,102.4955,159.1,159.09,3.26879536]
[1718205557634,109.9055,159.1,159.06,5.59489536]
[1718205557935,109.9055,159.1,159.04,7.58]
[1718205557936,109.9059,159.08,159.04,2.3263]
[1718205558231,9.9058,159.09,159.05,2.3262]
[1718205558427,7.58,159.08,159.04,2.3263]
[1718205558793,2.3257,159.09,159.05,2.3263]
[1718205559139,2.3255,159.11,159.07,2.326]
[1718205559425,102.3256,159.1,159.06,2.3261]
[1718205559826,102.3253,159.12,159.05,4.6524]
[1718205560712,2.3252,159.13,159.09,2.3256]
[1718205561022,102.325,159.14,159.09,2.3256]
[1718205561212,102.325,159.14,159.1,2.3255]
[1718205561723,102.325,159.14,159.09,2.3256]
[1718205561915,2.3251,159.13,159.09,2.3256]
[1718205562629,2.3249,159.15,159.08,15.3986]
[1718205562812,2.3249,159.15,159.1,2.3254]
[1718205563006,2.3249,159.15,159.11,2.3254]
[1718205563335,2.3249,159.15,159.08,20.0502]
[1718205563336,102.325,159.14,159.08,15.3986]
[1718205563496,2.3249,159.15,159.09,6.3317]
[1718205563697,102.3247,159.16,159.09,10.983]
[1718205563931,102.3247,159.16,159.11,2.3253]
[1718205563932,100.0,159.16,159.11,2.3253]
[1718205564131,114.84886488,159.2,159.09,6.3317]
[1718205564328,100.0,159.2,159.1,45.0]
[1718205564515,102.3241,159.2,159.1,45.0]
[1718205564701,100.0,159.2,159.15,2.3247]
[1718205564925,2.3244,159.18,159.14,2.3249]
[1718205565135,2.3243,159.19,159.14,2.3249]
[1718205565930,2.3243,159.19,159.15,2.3248]
[1718205566524,102.3241,159.2,159.16,2.3246]
[1718205566727,2.3243,159.19,159.14,2.3249]
[1718205567738,2.3243,159.19,159.15,2.3248]
[1718205568036,102.3242,159.2,159.16,2.3246]
[1718205568238,102.3242,159.2,159.15,2.3248]
[1718205568535,100.0,159.2,159.16,2.3246]
[1718205568737,102.3241,159.2,159.16,2.3246]
[1718205569110,100.0,159.2,159.16,2.3246]
[1718205569307,102.3241,159.2,159.16,2.3246]
[1718205569505,100.0,159.2,159.16,2.3246]
[1718205569713,102.3241,159.2,159.16,2.3246]
[1718205570507,102.3241,159.2,159.15,2.3247]
[1718205570708,2.3242,159.19,159.15,2.3247]
[1718205570910,102.3242,159.2,159.15,2.3247]
[1718205571130,120.9174,159.2,159.13,2.325]
[1718205571322,4.6485,159.19,159.13,2.325]
[1718205571538,100.0,159.18,159.12,2.3252]
[1718205571714,7.1439,159.17,159.09,6.3317]
[1718205571917,100.0,159.16,159.09,6.3317]
[1718205572115,2.3253,159.12,159.09,6.3317]
[1718205572346,100.0,159.14,159.09,6.3317]
[1718205572347,2.3252,159.13,159.09,6.3317]
[1718205572516,2.3253,159.12,159.09,6.3317]
[1718205573228,100.0,159.14,159.09,6.3317]
[1718205573541,2.3252,159.13,159.09,6.3317]
[1718205574646,100.0,159.12,159.09,6.3317]
[1718205575251,100.0,159.12,159.09,8.6573]
[1718205575749,102.325,159.14,159.09,8.6573]
[1718205575936,102.325,159.14,159.09,6.3317]
[1718205576819,2.3251,159.13,159.09,6.3317]
[1718205577018,100.0,159.1,159.05,6.0291]
[1718205577221,2.3258,159.09,159.05,8.3554]
[1718205577447,2.3258,159.08,159.05,6.0291]
[1718205577947,2.3258,159.08,159.04,2.3263]
[1718205578148,2.3259,159.08,159.04,2.3264]
[1718205578335,102.3259,159.08,159.04,2.3263]
[1718205578647,102.3259,159.08,159.03,2.3265]
[1718205578648,2.326,159.07,159.03,2.3265]
[1718205579025,102.3259,159.08,159.03,2.3265]
[1718205579230,2.326,159.07,159.03,2.3265]
[1718205579451,102.3259,159.08,159.03,2.3265]
[1718205579768,2.3257,159.09,159.05,2.3262]
[1718205580143,102.3256,159.1,159.05,2.3262]
[1718205580342,102.3256,159.1,159.06,2.3261]
[1718205580533,100.0,159.1,159.06,2.3261]
[1718205581247,102.3256,159.1,159.06,2.3261]
[1718205581733,102.3256,159.1,159.05,2.3262]
[1718205581934,2.3257,159.09,159.05,2.3262]
[1718205582884,102.3256,159.1,159.05,2.3262]
[1718205583059,102.3256,159.1,159.06,2.3261]
[1718205583244,102.3253,159.12,159.05,4.6525]
[1718205583429,102.3253,159.12,159.06,6.374]
[1718205583635,19.26648139,159.15,159.11,2.3254]
[1718205583636,9.96688139,159.15,159.11,2.3254]
[1718205583930,2.325,159.14,159.1,2.3255]
[1718205584138,102.325,159.14,159.07,4.652]
[1718205584336,2.325,159.14,159.07,4.652]
[1718205584550,102.3248,159.16,159.11,2.3253]
[1718205584742,102.3245,159.18,159.13,2.325]
[1718205585142,2.3245,159.18,159.14,2.3249]
[1718205585556,2.3245,159.18,159.12,16.6332]
[1718205585753,2.3243,159.19,159.12,21.2835]
[1718205585953,2.3244,159.18,159.14,2.3249]
[1718205586138,100.0,159.2,159.14,8.4767]
[1718205586337,2.3244,159.18,159.14,6.1518]
[1718205586748,104.6483,159.2,159.14,6.1518]
[1718205586749,2.3246,159.17,159.14,6.1518]
[1718205586948,111.6224,159.18,159.12,16.6332]
[1718205587282,100.0,159.18,159.12,18.9584]
[1718205587464,100.0,159.16,159.12,16.6332]
[1718205587647,2.3249,159.15,159.12,16.6332]
[1718205588368,104.6495,159.16,159.1,6.1518]
[1718205588571,6.9737,159.17,159.08,15.266]
[1718205588572,16.2759,159.13,159.08,15.266]
[1718205588777,2.3253,159.12,159.08,15.266]
[1718205588956,2.3253,159.12,159.08,17.5918]
[1718205589268,2.3251,159.13,159.08,17.5917]
[1718205589480,2.3251,159.13,159.09,2.3257]
[1718205589651,102.325,159.14,159.09,2.3257]
[1718205590770,2.325,159.14,159.1,2.3255]
[1718205591374,2.325,159.14,159.08,15.266]
[1718205591575,2.3249,159.15,159.08,15.266]
[1718205591875,2.325,159.14,159.08,15.266]
[1718205592469,2.3251,159.13,159.08,15.266]
[1718205592875,2.3251,159.13,159.09,2.3256]
[1718205593057,2.3253,159.12,159.08,17.5918]
[1718205593570,2.3254,159.11,159.08,15.266]
[1718205593754,2.3253,159.12,159.08,15.266]
[1718205594770,2.3252,159.13,159.08,17.5917]
[1718205594972,2.3252,159.13,159.09,2.3257]
[1718205595958,2.3252,159.13,159.08,15.266]
[1718205596283,2.325,159.14,159.08,15.266]
[1718205596475,2.3252,159.13,159.09,2.3256]
[1718205597674,2.3252,159.13,159.08,15.266]
[1718205597675,113.9475,159.17,159.08,19.9176]
[1718205597905,2.3249,159.15,159.08,19.9176]
[1718205598068,2.3247,159.16,159.11,2.3253]
[1718205598859,2.3247,159.16,159.12,2.3252]
[1718205599059,2.3248,159.16,159.1,4.6511]
[1718205599368,2.3248,159.16,159.12,2.3252]
[1718205600157,2.3246,159.17,159.12,2.3252]
[1718205600355,11.622,159.18,159.11,2.3253]
[1718205600577,2.3249,159.15,159.09,49.6513]
[1718205600782,2.3249,159.15,159.11,2.3254]
[1718205601165,106.9729,159.19,159.08,15.266]
[1718205601166,100.0,159.16,159.08,15.266]
[1718205601474,2.325,159.14,159.08,15.266]
[1718205601779,2.3253,159.12,159.08,15.266]
[1718205602279,2.3251,159.13,159.08,15.266]
[1718205602475,2.325,159.14,159.09,2.3256]
[1718205603175,2.3249,159.15,159.1,2.3255]
[1718205603480,2.325,159.14,159.09,2.3256]
[1718205603668,2.325,159.14,159.1,2.3255]
[1718205603871,104.6494,159.16,159.08,19.9177]
[1718205604068,102.3247,159.16,159.09,4.6514]
[1718205604380,102.3247,159.16,159.11,2.3253]
[1718205605184,102.3249,159.15,159.08,15.266]
[1718205605368,102.3249,159.15,159.08,19.9176]
[1718205605570,102.3249,159.15,159.1,2.3255]
[1718205605782,102.3249,159.15,159.08,19.9176]
[1718205606283,102.3249,159.15,159.1,2.3255]
[1718205606579,100.0,159.15,159.1,2.3255]
[1718205606761,102.3249,159.15,159.1,2.3255]
[1718205606958,100.0,159.15,159.08,17.5917]
[1718205607163,100.0,159.13,159.08,15.266]
[1718205607371,2.3255,159.11,159.07,2.3259]
[1718205607773,2.3253,159.12,159.07,2.3259]
[1718205607971,102.3251,159.13,159.08,2.3257]
[1718205609170,102.3252,159.13,159.06,6.5989]
[1718205609492,102.3252,159.13,159.08,2.3257]
[1718205609982,102.3252,159.13,159.09,2.3257]
[1718205610287,2.325,159.14,159.09,2.3257]
[1718205610489,102.3252,159.13,159.06,11.2511]
[1718205610676,102.3252,159.13,159.08,2.3257]
[1718205611067,100.0,159.15,159.06,6.5989]
[1718205611266,121.0931,159.18,159.12,2.3252]
[1718205611480,116.4443,159.18,159.12,2.3252]
[1718205611682,2.3246,159.17,159.12,2.3252]
[1718205611880,2.3247,159.16,159.07,45.0]
[1718205612072,116.4443,159.18,159.11,2.3253]
[1718205612073,121.0932,159.18,159.11,2.3253]
[1718205612489,2.3247,159.16,159.11,2.3253]
[1718205612784,102.3244,159.18,159.07,45.0]
[1718205612989,102.3244,159.18,159.13,2.325]
[1718205613190,102.3244,159.18,159.08,16.0025]
[1718205613385,100.0,159.2,159.09,46.2567926]
[1718205613585,2.3242,159.19,159.09,46.2567926]
[1718205613793,102.3242,159.2,159.15,2.3247]
[1718205614588,2.3242,159.2,159.15,2.3247]
[1718205614799,2.324,159.21,159.16,2.3246]
[1718205615094,104.6477,159.22,159.13,6.0998]
[1718205615095,2.3242,159.19,159.13,6.0998]
[1718205615296,100.0,159.2,159.13,6.0998]
[1718205615505,2.3244,159.18,159.13,6.0998]
[1718205615802,2.3247,159.16,159.09,51.0998]
[1718205615970,2.3247,159.16,159.11,2.3253]
[1718205616295,2.3247,159.16,159.09,51.0998]
[1718205616296,2.3247,159.16,159.12,2.3252]
[1718205616491,2.3246,159.17,159.12,2.3252]
[1718205616675,102.3244,159.18,159.13,2.325]
[1718205616877,2.3245,159.17,159.13,2.325]
[1718205617190,2.3245,159.17,159.1,4.651]
[1718205617591,2.3243,159.19,159.11,4.6508]
[1718205617784,2.3241,159.2,159.15,2.3247]
[1718205618888,2.324,159.21,159.13,4.6502]
[1718205619081,102.3241,159.2,159.15,2.3247]
[1718205619282,2.3241,159.2,159.15,2.3247]
[1718205619481,100.0,159.22,159.09,51.0998]
[1718205619688,2.3247,159.16,159.11,2.3253]
[1718205620410,116.219,159.19,159.13,2.325]
[1718205620700,22.3244,159.18,159.13,2.325]
[1718205621392,20.0,159.18,159.12,2.3252]
[1718205621897,2.3246,159.17,159.12,2.3252]
[1718205622597,2.3247,159.16,159.12,2.3252]
[1718205622794,2.3247,159.16,159.11,2.3253]
[1718205622996,24.6489,159.18,159.11,2.3253]
[1718205623199,2.3248,159.16,159.11,2.3253]
[1718205624503,2.3248,159.16,159.12,2.3252]
[1718205624893,20.0,159.18,159.13,2.3251]
[1718205625378,13.9453,159.2,159.1,45.0]
[1718205625379,2.3246,159.17,159.11,4.6507]
[1718205626295,2.3241,159.2,159.15,2.3247]
[1718205626688,2.3239,159.22,159.15,2.3248]
[1718205626891,100.0,159.25,159.14,0.17]
[1718205627195,2.3233,159.26,159.21,2.3239]
[1718205627397,254.5,159.27,159.24,2.3235]
[1718205627585,254.5,159.27,159.23,2.3236]
[1718205627921,254.5,159.27,159.2,6.6421]
[1718205628100,254.5,159.27,159.24,2.3234]
[1718205628703,254.5,159.27,159.23,2.3236]
[1718205628890,254.5,159.27,159.21,45.0]
[1718205629087,2.3225,159.31,159.21,45.0]
[1718205629393,2.3224,159.32,159.26,2.3231]
[1718205629602,2.3225,159.31,159.26,2.3231]
[1718205629801,2.3222,159.33,159.27,2.323]
[1718205629994,100.0,159.32,159.21,45.0]
[1718205630194,104.6442,159.34,159.26,2.3232]
[1718205630395,104.6442,159.34,159.21,45.0]
[1718205630692,2.3224,159.32,159.27,2.323]
[1718205631008,2.3225,159.31,159.25,2.3233]
[1718205631206,102.3224,159.32,159.26,2.3231]
[1718205631506,2.3222,159.33,159.27,2.323]
[1718205632100,2.3222,159.33,159.28,2.3229]
[1718205632402,102.3221,159.34,159.28,2.3229]
[1718205632600,2.4919,159.35,159.29,2.3227]
[1718205633207,2.322,159.34,159.29,2.3227]
[1718205633408,354.5,159.36,159.29,2.3227]
[1718205633603,256.8218,159.36,159.28,6.5458]
[1718205633805,254.5,159.36,159.31,2.3224]
[1718205634013,100.0,159.34,159.28,6.5458]
[1718205634190,100.0,159.34,159.28,8.8686]
[1718205634385,354.5,159.36,159.29,2.3227]
[1718205634710,2.322,159.35,159.28,6.5458]
[1718205634890,2.322,159.35,159.29,2.3227]
[1718205635086,2.3226,159.31,159.26,15.5075]
[1718205635303,2.3227,159.3,159.24,8.6446]
[1718205635621,0.17,159.3,159.23,2.3236]
[1718205635809,0.34,159.3,159.23,2.3236]
[1718205636011,2.3233,159.25,159.2,6.3212]
[1718205636224,100.0,159.26,159.18,16.4633]
[1718205636427,2.3236,159.24,159.18,18.7876]
[1718205636722,0.34,159.25,159.18,16.4633]
[1718205637020,100.0,159.26,159.18,16.4633]
[1718205637223,100.0,159.26,159.21,2.3238]
[1718205638092,102.3232,159.26,159.21,2.3238]
[1718205638719,102.3229,159.28,159.23,2.3236]
[1718205639013,0.17,159.29,159.2,2.324]
[1718205639014,102.3233,159.26,159.2,2.324]
[1718205639224,2.3233,159.26,159.21,2.3239]
[1718205639509,2.3232,159.26,159.21,2.3238]
[1718205639692,2.3231,159.27,159.21,2.3238]
[1718205640098,2.3231,159.27,159.22,2.3238]
[1718205640290,100.0,159.28,159.23,2.3236]
[1718205640499,102.322,159.34,159.24,6.4639]
[1718205640700,2.322,159.35,159.25,45.0]
[1718205640914,356.8218,159.36,159.3,2.3225]
[1718205641106,354.5,159.36,159.31,2.3224]
[1718205641499,254.5,159.36,159.31,2.3224]
[1718205641698,254.5,159.36,159.32,2.3223]
[1718205642006,254.5,159.36,159.27,16.0767]
[1718205642207,256.8218,159.36,159.3,2.3225]
[1718205642523,254.5,159.36,159.28,45.0]
[1718205642807,254.5,159.36,159.31,2.3224]
[1718205643200,100.0,159.35,159.28,45.0]
[1718205643401,2.3221,159.34,159.29,2.3227]
[1718205643720,256.8218,159.36,159.3,2.3226]
[1718205644023,2.3219,159.35,159.3,2.3226]
[1718205644400,102.3219,159.35,159.29,2.3227]
[1718205644999,2.322,159.34,159.29,2.3227]
[1718205645815,100.0,159.35,159.29,2.3227]
[1718205645990,2.3221,159.34,159.29,2.3227]
[1718205646515,2.322,159.35,159.3,2.3226]
[1718205646719,0.17,159.36,159.28,45.0]
[1718205646917,2.3219,159.35,159.3,2.3226]
[1718205647409,2.3221,159.34,159.29,2.3227]
[1718205647830,2.3225,159.31,159.26,2.3231]
[1718205649017,0.17,159.29,159.24,6.4639]
[1718205649198,2.323,159.28,159.23,2.3235]
[1718205649398,2.3231,159.27,159.23,2.3235]
[1718205649605,2.323,159.28,159.24,2.3235]
[1718205649907,2.6628,159.29,159.25,2.3233]
[1718205650107,0.34,159.29,159.25,2.3233]
[1718205650525,2.6628,159.29,159.24,2.3234]
[1718205651027,2.6628,159.29,159.25,2.3233]
[1718205651208,2.6628,159.29,159.24,2.3234]
[1718205651527,2.3229,159.28,159.24,2.3234]
[1718205651702,2.6628,159.29,159.24,2.3234]
[1718205652429,2.3229,159.28,159.24,2.3234]
[1718205653316,2.6628,159.29,159.24,2.3234]
[1718205653627,0.34,159.29,159.2,6.0062]
[1718205653944,100.0,159.34,159.3,2.3225]
[1718205654430,102.3222,159.34,159.29,2.3227]
[1718205654624,2.3222,159.33,159.28,2.3228]
[1718205654917,102.3221,159.34,159.29,2.3227]
[1718205655316,2.322,159.35,159.3,2.3226]
[1718205655515,102.3218,159.36,159.31,2.3225]
[1718205656012,2.3217,159.37,159.32,2.3223]
[1718205656828,2.3217,159.37,159.31,2.3224]
[1718205657122,2.3217,159.36,159.31,2.3224]
[1718205657718,2.3217,159.37,159.31,2.3224]
[1718205658035,102.6615,159.38,159.32,2.3223]
[1718205658524,100.34,159.38,159.31,2.3224]
[1718205659119,2.3217,159.37,159.32,2.3223]
[1718205660224,2.3216,159.37,159.32,2.3223]
[1718205661034,102.3212,159.4,159.34,2.3219]
[1718205661203,102.3212,159.4,159.35,2.3219]
[1718205661204,100.0,159.4,159.35,2.3219]
[1718205661402,102.3212,159.4,159.35,2.3219]
[1718205661916,102.3212,159.4,159.34,2.322]
[1718205662228,2.3213,159.39,159.34,2.322]
[1718205663325,2.3214,159.38,159.33,2.3221]
[1718205663518,2.3213,159.39,159.34,2.322]
[1718205663820,2.3215,159.38,159.33,2.3221]
[1718205664035,2.3215,159.38,159.29,22.78]
[1718205664036,100.0,159.36,159.28,21.4064]
[1718205664211,2.3223,159.32,159.28,21.4064]
[1718205664407,9.9667,159.37,159.28,21.4064]
[1718205664408,14.6101,159.37,159.28,21.4064]
[1718205664726,2.322,159.35,159.3,2.3226]
[1718205665023,2.322,159.34,159.29,2.3227]
[1718205665211,2.3218,159.36,159.31,2.3224]
[1718205665412,2.4917,159.37,159.32,2.3223]
[1718205666632,2.3215,159.38,159.33,2.3221]
[1718205666805,0.17,159.39,159.28,21.4064]
[1718205667119,100.0,159.4,159.29,45.34]
[1718205667431,2.3213,159.39,159.34,2.3219]
[1718205668227,100.0,159.42,159.3,0.17]
[1718205668417,2.3209,159.42,159.37,2.3215]
[1718205668620,2.321,159.41,159.36,2.3217]
[1718205669010,2.3212,159.4,159.35,2.3218]
[1718205672620,0.51,159.36,159.32,2.3223]
[1718205672815,102.3219,159.35,159.3,2.3225]
[1718205673021,2.8318,159.36,159.31,2.3224]
[1718205673224,0.17,159.35,159.31,2.3224]
[1718205675616,100.0,159.37,159.33,2.3221]
[1718205675814,102.4913,159.39,159.28,21.4064]
[1718205676034,20.34,159.38,159.33,2.3221]
[1718205676524,22.6615,159.38,159.33,2.3221]
[1718205676717,22.3215,159.38,159.33,2.3221]
[1718205677030,104.6423,159.41,159.29,45.0]
[1718205677240,100.0,159.41,159.29,45.0]
[1718205677538,2.3209,159.42,159.37,2.3215]
[1718205677742,2.321,159.41,159.36,2.3217]
[1718205678042,100.0,159.43,159.38,2.3214]
[1718205678245,256.8206,159.44,159.38,2.3213]
[1718205678450,256.8206,159.44,159.35,22.4963]
[1718205678451,254.5,159.44,159.35,22.4963]
[1718205678738,254.5,159.44,159.42,2.3208]
[1718205678939,254.5,159.44,159.36,45.34]
[1718205679141,100.0,159.43,159.36,45.0]
[1718205679524,254.5,159.44,159.39,2.3212]
[1718205679525,256.8206,159.44,159.39,2.3212]
[1718205679728,254.5,159.44,159.39,2.3212]
[1718205679924,102.3207,159.43,159.36,45.0]
[1718205680124,254.5,159.44,159.4,2.3211]
[1718205680516,254.5,159.44,159.42,2.3208]
[1718205681137,21.1633,159.5,159.37,0.17]
[1718205681138,2.3198,159.5,159.37,0.17]
[1718205681439,2.3196,159.51,159.39,0.17]
[1718205681644,254.5,159.52,159.39,45.51]
[1718205681645,2.3199,159.49,159.39,45.51]
[1718205681948,2.32,159.48,159.39,45.34]
[1718205682137,356.8194,159.52,159.4,0.17]
[1718205682435,356.8194,159.52,159.4,0.34]
[1718205682745,254.5,159.52,159.41,15.7681]
[1718205683041,254.5,159.52,159.43,6.1946]
[1718205683245,254.5,159.52,159.44,45.0]
[1718205683543,254.5,159.52,159.45,0.34]
[1718205684345,2.319,159.55,159.45,0.34]
[1718205684638,2.3189,159.56,159.46,0.17]
[1718205684849,2.3189,159.56,159.46,0.34]
[1718205685157,2.319,159.55,159.45,0.34]
[1718205685319,2.3191,159.54,159.45,0.34]
[1718205685523,2.319,159.55,159.45,0.34]
[1718205685719,2.3191,159.54,159.45,0.34]
[1718205686126,2.3192,159.54,159.44,45.0]
[1718205686652,2.319,159.55,159.44,45.0]
[1718205686855,2.3189,159.56,159.45,0.34]
[1718205687140,100.0,159.57,159.45,0.34]
[1718205687348,2.3187,159.57,159.46,15.9768]
[1718205687531,2.3186,159.58,159.47,45.51]
[1718205687722,2.3187,159.57,159.47,45.51]
[1718205687925,100.0,159.56,159.47,45.0]
[1718205688224,2.3191,159.54,159.47,45.0]
[1718205688418,2.3191,159.54,159.46,15.8068]
[1718205688419,102.3191,159.54,159.46,15.8068]
[1718205688621,2.3193,159.53,159.46,15.8068]
[1718205688856,2.3195,159.52,159.46,15.8068]
[1718205689028,100.0,159.52,159.46,15.8068]
[1718205689226,100.0,159.52,159.43,6.1946]
[1718205689544,2.32,159.48,159.43,6.1946]
[1718205689726,0.34,159.51,159.43,6.1946]
[1718205689925,100.0,159.52,159.43,6.1946]
[1718205690363,2.4896,159.51,159.43,6.1946]
[1718205690645,102.3197,159.5,159.43,6.1946]
[1718205690944,2.3199,159.49,159.43,6.1946]
[1718205691254,2.3203,159.46,159.32,6.5485]
[1718205691626,2.6605,159.45,159.32,6.5485]
[1718205692042,2.3202,159.47,159.32,6.5485]
[1718205692246,2.3201,159.47,159.32,6.5485]
[1718205692533,100.0,159.48,159.32,6.4864]
[1718205692736,2.3203,159.46,159.41,2.3209]
[1718205692956,0.34,159.45,159.38,2.3214]
[1718205693165,2.3207,159.44,159.38,2.3214]
[1718205693333,2.3207,159.43,159.38,2.3214]
[1718205693658,102.3206,159.44,159.39,2.3212]
[1718205693839,2.3208,159.43,159.37,2.3215]
[1718205694036,2.3209,159.42,159.36,2.3217]
[1718205694345,102.3209,159.42,159.32,6.4864]
[1718205694847,100.17,159.44,159.38,2.3213]
[1718205695062,100.0,159.44,159.4,2.321]
[1718205695223,100.0,159.44,159.32,6.4864]
[1718205695224,0.17,159.45,159.41,2.321]
[1718205695423,0.68,159.45,159.41,2.321]
[1718205695623,0.68,159.45,159.4,2.3211]
[1718205695846,100.0,159.44,159.4,2.3211]
[1718205696051,0.68,159.45,159.41,2.321]
[1718205696635,3.0004,159.45,159.4,2.3211]
[1718205696838,0.68,159.45,159.4,2.3211]
[1718205697243,3.0005,159.45,159.4,2.3211]
[1718205697559,2.3206,159.44,159.39,2.3212]
[1718205697741,102.3206,159.44,159.39,2.3212]
[1718205697929,102.3207,159.43,159.38,2.3214]
[1718205698349,2.3206,159.44,159.39,2.3213]
[1718205698555,3.0005,159.45,159.4,2.3211]
[1718205698753,103.0005,159.45,159.4,2.3211]
[1718205700448,118.2626,159.47,159.33,0.17]